[Event "*** SCC Grand Prix: Titled Tuesday Blitz"]
[Site "Chess.com"]
[Date "2020.07.21"]
[Round "10"]
[White "Mikhail_Golubev"]
[Black "LisikValera"]
[Result "0-1"]
[WhiteElo "2587"]
[BlackElo "2477"]
[TimeControl "180+1"]
[EndTime "11:57:54 PDT"]
[Termination "LisikValera won by checkmate"]

1. e4 {[%clk 0:03:00.9]} 1... e6 {[%clk 0:02:58.9]} 2. d4 {[%clk 0:02:57.5]}
2... d5 {[%clk 0:02:59.8]} 3. Nc3 {[%clk 0:02:56.9]} 3... Bb4 {[%clk 0:02:58.7]}
4. e5 {[%clk 0:02:56]} 4... Ne7 {[%clk 0:02:58.8]} 5. a3 {[%clk 0:02:55.7]} 5...
Bxc3+ {[%clk 0:02:59.4]} 6. bxc3 {[%clk 0:02:55.9]} 6... c5 {[%clk 0:03:00.3]}
7. a4 {[%clk 0:02:52.8]} 7... b6 {[%clk 0:02:56.3]} 8. Bb5+ {[%clk 0:02:48.5]}
8... Bd7 {[%clk 0:02:56.1]} 9. Bd3 {[%clk 0:02:48.5]} 9... O-O {[%clk
0:02:54.2]} 10. Nf3 {[%clk 0:02:47.7]} 10... Nbc6 {[%clk 0:02:53.1]} 11. Bxh7+
{[%clk 0:02:44.2]} 11... Kxh7 {[%clk 0:02:49.5]} 12. Ng5+ {[%clk 0:02:44.2]}
12... Kg6 {[%clk 0:02:48.8]} 13. Qg4 {[%clk 0:02:33.1]} 13... f5 {[%clk
0:02:46.8]} 14. Qg3 {[%clk 0:01:48.8]} 14... f4 {[%clk 0:02:42.9]} 15. Qg4
{[%clk 0:01:33.3]} 15... Qc8 {[%clk 0:02:36.2]} 16. Ne4+ {[%clk 0:01:28]} 16...
Kh7 {[%clk 0:02:34.3]} 17. Qh5+ {[%clk 0:01:23.6]} 17... Kg8 {[%clk 0:02:34.3]}
18. Ng5 {[%clk 0:01:23.2]} 18... Rf5 {[%clk 0:02:31.1]} 19. g4 {[%clk
0:01:17.1]} 19... Rxg5 {[%clk 0:02:27.5]} 20. Qxg5 {[%clk 0:01:16.9]} 20... cxd4
{[%clk 0:02:23.1]} 21. Bxf4 {[%clk 0:01:15.1]} 21... dxc3 {[%clk 0:02:19.6]} 22.
Rd1 {[%clk 0:01:11.2]} 22... Qa6 {[%clk 0:02:13.6]} 23. h4 {[%clk 0:00:52]}
23... Qc4 {[%clk 0:02:11.9]} 24. f3 {[%clk 0:00:49.9]} 24... Rf8 {[%clk
0:02:09.7]} 25. Be3 {[%clk 0:00:43.4]} 25... Rxf3 {[%clk 0:02:08.6]} 26. h5
{[%clk 0:00:43.2]} 26... Qe4 {[%clk 0:02:04]} 27. Ke2 {[%clk 0:00:40.6]} 27...
d4 {[%clk 0:02:03.8]} 28. Rd3 {[%clk 0:00:34.4]} 28... Rxe3+ {[%clk 0:01:46.6]}
29. Rxe3 {[%clk 0:00:34.3]} 29... dxe3 {[%clk 0:01:33.3]} 30. h6 {[%clk
0:00:32.2]} 30... Nd4+ {[%clk 0:01:32.8]} 31. Ke1 {[%clk 0:00:27.1]} 31... Qxh1#
{[%clk 0:01:31.3]} 0-1

[Event "*** SCC Grand Prix: Titled Tuesday Blitz"]
[Site "Chess.com"]
[Date "2020.07.21"]
[Round "10"]
[White "FMJoseHerrera"]
[Black "petincash"]
[Result "1-0"]
[WhiteElo "2488"]
[BlackElo "2349"]
[TimeControl "180+1"]
[EndTime "11:58:02 PDT"]
[Termination "FMJoseHerrera won on time"]

1. Nf3 {[%clk 0:03:00.9]} 1... c5 {[%clk 0:03:00.5]} 2. g3 {[%clk 0:03:01.8]}
2... Nc6 {[%clk 0:02:57.3]} 3. Bg2 {[%clk 0:03:00.2]} 3... d5 {[%clk 0:02:57.3]}
4. c4 {[%clk 0:02:59.6]} 4... d4 {[%clk 0:02:44.9]} 5. O-O {[%clk 0:02:59]} 5...
g6 {[%clk 0:02:35]} 6. e3 {[%clk 0:02:57.1]} 6... Bg7 {[%clk 0:02:33.6]} 7. exd4
{[%clk 0:02:56]} 7... cxd4 {[%clk 0:02:32.9]} 8. d3 {[%clk 0:02:52.4]} 8... e6
{[%clk 0:01:50.6]} 9. Bg5 {[%clk 0:02:41.5]} 9... f6 {[%clk 0:01:46.8]} 10. Bf4
{[%clk 0:02:38.4]} 10... e5 {[%clk 0:01:46.1]} 11. Bd2 {[%clk 0:02:36]} 11...
Nh6 {[%clk 0:01:34.3]} 12. b4 {[%clk 0:02:35.6]} 12... O-O {[%clk 0:01:34.4]}
13. b5 {[%clk 0:02:35.5]} 13... Ne7 {[%clk 0:01:34.6]} 14. a4 {[%clk 0:02:35.7]}
14... Nf7 {[%clk 0:01:33.3]} 15. a5 {[%clk 0:02:35.4]} 15... a6 {[%clk
0:01:26.1]} 16. Bb4 {[%clk 0:02:31.3]} 16... axb5 {[%clk 0:01:20.6]} 17. cxb5
{[%clk 0:02:32.2]} 17... Nd5 {[%clk 0:01:18.5]} 18. Bxf8 {[%clk 0:02:24.9]}
18... Bxf8 {[%clk 0:01:16.1]} 19. Nfd2 {[%clk 0:02:22.6]} 19... Be6 {[%clk
0:01:13.4]} 20. Nc4 {[%clk 0:02:14.5]} 20... Bb4 {[%clk 0:00:50.2]} 21. Qb3
{[%clk 0:02:03.9]} 21... Qe7 {[%clk 0:00:40.5]} 22. a6 {[%clk 0:01:55.9]} 22...
bxa6 {[%clk 0:00:38.8]} 23. bxa6 {[%clk 0:01:56.8]} 23... Ra7 {[%clk 0:00:31.7]}
24. Nbd2 {[%clk 0:01:53.7]} 24... Nc3 {[%clk 0:00:28]} 25. Ne4 {[%clk
0:01:50.2]} 25... Nxe4 {[%clk 0:00:11.2]} 26. Bxe4 {[%clk 0:01:51.1]} 26... f5
{[%clk 0:00:11.7]} 27. Bg2 {[%clk 0:01:49.6]} 27... e4 {[%clk 0:00:09.9]} 28.
Rfb1 {[%clk 0:01:48.4]} 28... Bc3 {[%clk 0:00:09.4]} 29. Qb8+ {[%clk 0:01:48.1]}
29... Kg7 {[%clk 0:00:09.2]} 30. Rb7 {[%clk 0:01:48.6]} 30... Rxb7 {[%clk
0:00:05.9]} 31. Qxb7 {[%clk 0:01:49.5]} 1-0

[Event "*** SCC Grand Prix: Titled Tuesday Blitz"]
[Site "Chess.com"]
[Date "2020.07.21"]
[Round "10"]
[White "alfiefischer77"]
[Black "AungTZ"]
[Result "1-0"]
[WhiteElo "2203"]
[BlackElo "2036"]
[TimeControl "180+1"]
[EndTime "11:58:03 PDT"]
[Termination "alfiefischer77 won by resignation"]

1. e4 {[%clk 0:03:00.9]} 1... c5 {[%clk 0:02:42.9]} 2. Nf3 {[%clk 0:03:00.8]}
2... Nc6 {[%clk 0:02:42.4]} 3. d4 {[%clk 0:03:01.2]} 3... cxd4 {[%clk
0:02:42.4]} 4. Nxd4 {[%clk 0:03:02.1]} 4... Nf6 {[%clk 0:02:42.2]} 5. Nc3 {[%clk
0:03:02.6]} 5... d6 {[%clk 0:02:41.2]} 6. Bg5 {[%clk 0:03:02.1]} 6... e6 {[%clk
0:02:38.7]} 7. f3 {[%clk 0:02:58.8]} 7... Be7 {[%clk 0:02:30.3]} 8. Qd2 {[%clk
0:02:57.3]} 8... h6 {[%clk 0:02:26.7]} 9. Be3 {[%clk 0:02:53.5]} 9... a6 {[%clk
0:02:25.1]} 10. O-O-O {[%clk 0:02:52.8]} 10... Qc7 {[%clk 0:02:24.5]} 11. Kb1
{[%clk 0:02:38.6]} 11... Bd7 {[%clk 0:02:23.3]} 12. Nxc6 {[%clk 0:02:36]} 12...
Bxc6 {[%clk 0:02:19.6]} 13. Bc4 {[%clk 0:02:25]} 13... O-O {[%clk 0:02:15.8]}
14. Bb3 {[%clk 0:02:22.8]} 14... b5 {[%clk 0:02:14.8]} 15. g4 {[%clk 0:02:21.6]}
15... Nh7 {[%clk 0:02:09]} 16. h4 {[%clk 0:02:20.4]} 16... Bd7 {[%clk 0:01:26]}
17. g5 {[%clk 0:02:12.1]} 17... h5 {[%clk 0:01:25]} 18. g6 {[%clk 0:02:10.2]}
18... fxg6 {[%clk 0:01:24.5]} 19. Rhg1 {[%clk 0:01:52.5]} 19... Rf6 {[%clk
0:01:08.9]} 20. Bd4 {[%clk 0:01:43.1]} 20... Rf7 {[%clk 0:01:02.7]} 21. Rxg6
{[%clk 0:01:39.7]} 21... Nf8 {[%clk 0:01:00.5]} 22. Rg2 {[%clk 0:01:09.4]} 22...
Kh8 {[%clk 0:00:49.3]} 23. Rdg1 {[%clk 0:01:07.8]} 23... Bf6 {[%clk 0:00:45.1]}
24. Bxf6 {[%clk 0:00:49.8]} 1-0

[Event "*** SCC Grand Prix: Titled Tuesday Blitz"]
[Site "Chess.com"]
[Date "2020.07.21"]
[Round "10"]
[White "keepitcool9499"]
[Black "SantoBlue"]
[Result "1-0"]
[WhiteElo "2606"]
[BlackElo "2739"]
[TimeControl "180+1"]
[EndTime "11:58:08 PDT"]
[Termination "keepitcool9499 won by checkmate"]

1. d4 {[%clk 0:03:00.9]} 1... Nf6 {[%clk 0:02:59.8]} 2. c4 {[%clk 0:02:59.9]}
2... e6 {[%clk 0:02:59.8]} 3. Nc3 {[%clk 0:03:00.8]} 3... Bb4 {[%clk 0:02:59.7]}
4. Bd2 {[%clk 0:03:01.2]} 4... O-O {[%clk 0:02:58.9]} 5. e3 {[%clk 0:03:01.5]}
5... b6 {[%clk 0:02:58.9]} 6. Nf3 {[%clk 0:03:02]} 6... Bb7 {[%clk 0:02:58.9]}
7. Qc2 {[%clk 0:03:00.5]} 7... Bxc3 {[%clk 0:02:57.9]} 8. Bxc3 {[%clk
0:03:00.2]} 8... Ne4 {[%clk 0:02:58]} 9. Bd3 {[%clk 0:03:00.5]} 9... f5 {[%clk
0:02:58.3]} 10. O-O {[%clk 0:02:58.2]} 10... Nxc3 {[%clk 0:02:56.8]} 11. Qxc3
{[%clk 0:02:58.1]} 11... Bxf3 {[%clk 0:02:55.2]} 12. gxf3 {[%clk 0:02:59]} 12...
Qh4 {[%clk 0:02:54]} 13. Kh1 {[%clk 0:02:58.5]} 13... Qh3 {[%clk 0:02:51.4]} 14.
Be2 {[%clk 0:02:57.8]} 14... Nc6 {[%clk 0:02:45.7]} 15. Rg1 {[%clk 0:02:57.9]}
15... Qh6 {[%clk 0:02:39.8]} 16. Rg2 {[%clk 0:02:56.4]} 16... f4 {[%clk
0:02:37.2]} 17. Rag1 {[%clk 0:02:55.6]} 17... Rf7 {[%clk 0:02:37.2]} 18. d5
{[%clk 0:02:50.3]} 18... Ne7 {[%clk 0:02:32.5]} 19. dxe6 {[%clk 0:02:49.6]}
19... dxe6 {[%clk 0:02:32.3]} 20. c5 {[%clk 0:02:45.2]} 20... Nd5 {[%clk
0:02:31]} 21. Qe5 {[%clk 0:02:42.3]} 21... fxe3 {[%clk 0:02:28]} 22. fxe3 {[%clk
0:02:42.7]} 22... Nxe3 {[%clk 0:02:24.2]} 23. Rg5 {[%clk 0:02:19.3]} 23... Nd5
{[%clk 0:02:11.9]} 24. Bc4 {[%clk 0:02:18.1]} 24... Nf4 {[%clk 0:02:06.1]} 25.
R5g4 {[%clk 0:01:54.6]} 25... Raf8 {[%clk 0:02:05.8]} 26. cxb6 {[%clk
0:01:44.3]} 26... cxb6 {[%clk 0:02:01.1]} 27. R1g3 {[%clk 0:01:37.8]} 27... Kh8
{[%clk 0:01:41.3]} 28. Qd6 {[%clk 0:01:19.4]} 28... Nh5 {[%clk 0:01:32.9]} 29.
Rg1 {[%clk 0:00:59.3]} 29... Rxf3 {[%clk 0:01:25]} 30. Be2 {[%clk 0:00:43.6]}
30... Rf2 {[%clk 0:01:17.4]} 31. R4g2 {[%clk 0:00:36.7]} 31... Rxg2 {[%clk
0:01:14.1]} 32. Qxf8# {[%clk 0:00:34.3]} 1-0

[Event "*** SCC Grand Prix: Titled Tuesday Blitz"]
[Site "Chess.com"]
[Date "2020.07.21"]
[Round "10"]
[White "TheWolfSpur"]
[Black "tylityli"]
[Result "1-0"]
[WhiteElo "2384"]
[BlackElo "2160"]
[TimeControl "180+1"]
[EndTime "11:58:09 PDT"]
[Termination "TheWolfSpur won by resignation"]

1. d4 {[%clk 0:03:00.9]} 1... Nf6 {[%clk 0:02:59.4]} 2. c4 {[%clk 0:03:01.2]}
2... e6 {[%clk 0:02:59.6]} 3. Nf3 {[%clk 0:03:01.4]} 3... Bb4+ {[%clk
0:02:59.6]} 4. Nbd2 {[%clk 0:03:01.3]} 4... O-O {[%clk 0:02:57.7]} 5. a3 {[%clk
0:03:01.7]} 5... Bxd2+ {[%clk 0:02:57]} 6. Qxd2 {[%clk 0:03:02.6]} 6... d6
{[%clk 0:02:57.4]} 7. e3 {[%clk 0:03:02.4]} 7... b6 {[%clk 0:02:57.1]} 8. Be2
{[%clk 0:03:01.5]} 8... Bb7 {[%clk 0:02:57.3]} 9. O-O {[%clk 0:03:01.4]} 9...
Ne4 {[%clk 0:02:57.5]} 10. Qc2 {[%clk 0:03:01.2]} 10... f5 {[%clk 0:02:56.8]}
11. b4 {[%clk 0:03:01.5]} 11... Nd7 {[%clk 0:02:56.5]} 12. Bb2 {[%clk
0:03:00.9]} 12... c5 {[%clk 0:02:54.1]} 13. Rad1 {[%clk 0:02:38.9]} 13... Qe7
{[%clk 0:02:50.2]} 14. Nd2 {[%clk 0:02:03]} 14... Ndf6 {[%clk 0:02:44.1]} 15.
Nxe4 {[%clk 0:02:01.6]} 15... Bxe4 {[%clk 0:02:42.7]} 16. Qc1 {[%clk 0:01:53.8]}
16... Bb7 {[%clk 0:02:35.4]} 17. f3 {[%clk 0:01:49.3]} 17... Rac8 {[%clk
0:02:34.7]} 18. dxc5 {[%clk 0:01:47.7]} 18... dxc5 {[%clk 0:02:31.7]} 19. b5
{[%clk 0:01:34.4]} 19... e5 {[%clk 0:02:28.1]} 20. Qc3 {[%clk 0:01:31.1]} 20...
e4 {[%clk 0:02:27.2]} 21. f4 {[%clk 0:01:30.8]} 21... Rcd8 {[%clk 0:02:24.2]}
22. h3 {[%clk 0:01:24.6]} 22... h5 {[%clk 0:02:21.6]} 23. Qe5 {[%clk 0:01:19.9]}
23... Kf7 {[%clk 0:02:03.5]} 24. Qxf5 {[%clk 0:01:14.4]} 24... g6 {[%clk
0:01:55.9]} 25. Qg5 {[%clk 0:01:01]} 25... Rxd1 {[%clk 0:01:42.5]} 26. Rxd1
{[%clk 0:01:01.9]} 26... Rd8 {[%clk 0:01:42.3]} 27. Rxd8 {[%clk 0:00:59.4]}
27... Qxd8 {[%clk 0:01:42.1]} 28. f5 {[%clk 0:00:59.2]} 28... gxf5 {[%clk
0:01:25.8]} 29. Qxf5 {[%clk 0:00:46.9]} 29... h4 {[%clk 0:01:13.1]} 30. Bh5+
{[%clk 0:00:42.4]} 30... Kg7 {[%clk 0:01:04.4]} 31. Qg6+ {[%clk 0:00:38.9]} 1-0

[Event "*** SCC Grand Prix: Titled Tuesday Blitz"]
[Site "Chess.com"]
[Date "2020.07.21"]
[Round "10"]
[White "anon569"]
[Black "zaur-mammadov"]
[Result "0-1"]
[WhiteElo "2344"]
[BlackElo "2671"]
[TimeControl "180+1"]
[EndTime "11:58:15 PDT"]
[Termination "zaur-mammadov won by resignation"]

1. e4 {[%clk 0:03:00.9]} 1... e6 {[%clk 0:02:59]} 2. Nf3 {[%clk 0:02:58.9]} 2...
d5 {[%clk 0:02:59.3]} 3. Nc3 {[%clk 0:02:58.4]} 3... Nf6 {[%clk 0:02:58.3]} 4.
e5 {[%clk 0:02:58.6]} 4... Nfd7 {[%clk 0:02:58.8]} 5. d4 {[%clk 0:02:58.8]} 5...
c5 {[%clk 0:02:59.2]} 6. dxc5 {[%clk 0:02:58.2]} 6... Nc6 {[%clk 0:02:57]} 7.
Bf4 {[%clk 0:02:57.8]} 7... Bxc5 {[%clk 0:02:56.3]} 8. Bd3 {[%clk 0:02:56.9]}
8... f6 {[%clk 0:02:56.8]} 9. exf6 {[%clk 0:02:55.3]} 9... Nxf6 {[%clk
0:02:57.7]} 10. O-O {[%clk 0:02:52.6]} 10... O-O {[%clk 0:02:58.1]} 11. Qd2
{[%clk 0:02:39.8]} 11... Bd7 {[%clk 0:02:52.3]} 12. Ne5 {[%clk 0:02:01]} 12...
Nxe5 {[%clk 0:02:51.2]} 13. Bxe5 {[%clk 0:02:01.3]} 13... Ng4 {[%clk 0:02:44.4]}
14. Bg3 {[%clk 0:01:57.8]} 14... Qf6 {[%clk 0:02:38.9]} 15. Rae1 {[%clk
0:01:42.6]} 15... h5 {[%clk 0:02:35.9]} 16. h3 {[%clk 0:01:42.1]} 16... h4
{[%clk 0:02:35.9]} 17. Bf4 {[%clk 0:00:36.7]} 17... Qxf4 {[%clk 0:02:20.3]} 18.
Qxf4 {[%clk 0:00:35.6]} 18... Rxf4 {[%clk 0:02:21.2]} 19. hxg4 {[%clk 0:00:36]}
19... Raf8 {[%clk 0:02:18.4]} 20. Re2 {[%clk 0:00:33.7]} 20... Rxg4 {[%clk
0:02:17.6]} 21. Kh1 {[%clk 0:00:21]} 21... Rgf4 {[%clk 0:02:04.5]} 22. Nd1
{[%clk 0:00:17.8]} 22... R8f6 {[%clk 0:01:57.7]} 23. Kg1 {[%clk 0:00:16.6]}
23... Be8 {[%clk 0:01:54.8]} 24. Re5 {[%clk 0:00:15]} 24... Bd6 {[%clk
0:01:37.1]} 25. Re3 {[%clk 0:00:14]} 25... Bh5 {[%clk 0:01:34.4]} 26. Nc3 {[%clk
0:00:10]} 26... Bc5 {[%clk 0:01:33]} 27. Re2 {[%clk 0:00:09.9]} 27... Bxe2
{[%clk 0:01:31.9]} 0-1

[Event "*** SCC Grand Prix: Titled Tuesday Blitz"]
[Site "Chess.com"]
[Date "2020.07.21"]
[Round "10"]
[White "ljuks68"]
[Black "Skatchkov_V"]
[Result "0-1"]
[WhiteElo "2448"]
[BlackElo "2593"]
[TimeControl "180+1"]
[EndTime "11:58:21 PDT"]
[Termination "Skatchkov_V won by resignation"]

1. e4 {[%clk 0:03:00.9]} 1... e5 {[%clk 0:02:58]} 2. Nf3 {[%clk 0:03:01]} 2...
Nf6 {[%clk 0:02:56.4]} 3. Nxe5 {[%clk 0:02:59.8]} 3... d6 {[%clk 0:02:55.7]} 4.
Nf3 {[%clk 0:02:59.6]} 4... Nxe4 {[%clk 0:02:52.1]} 5. d3 {[%clk 0:03:00.1]}
5... Nf6 {[%clk 0:02:52.1]} 6. d4 {[%clk 0:03:00.6]} 6... Be7 {[%clk 0:02:48.8]}
7. c4 {[%clk 0:03:00.7]} 7... O-O {[%clk 0:02:48]} 8. Be2 {[%clk 0:03:00.7]}
8... Bg4 {[%clk 0:02:45.9]} 9. O-O {[%clk 0:03:00.5]} 9... c6 {[%clk 0:02:43.3]}
10. Nc3 {[%clk 0:03:00]} 10... Nbd7 {[%clk 0:02:42]} 11. Bf4 {[%clk 0:02:57]}
11... Re8 {[%clk 0:02:26.4]} 12. h3 {[%clk 0:02:50.1]} 12... Bh5 {[%clk
0:02:23.5]} 13. Re1 {[%clk 0:02:49.5]} 13... h6 {[%clk 0:02:15.2]} 14. Bd3
{[%clk 0:02:37.7]} 14... Nf8 {[%clk 0:02:11.6]} 15. g4 {[%clk 0:02:26.1]} 15...
Bg6 {[%clk 0:02:09.1]} 16. Qd2 {[%clk 0:02:25.5]} 16... d5 {[%clk 0:02:06.7]}
17. c5 {[%clk 0:02:23.2]} 17... Bxd3 {[%clk 0:02:02.4]} 18. Qxd3 {[%clk
0:02:22.4]} 18... b6 {[%clk 0:01:50]} 19. b4 {[%clk 0:02:20.2]} 19... a5 {[%clk
0:01:48.2]} 20. a3 {[%clk 0:02:16.1]} 20... axb4 {[%clk 0:01:47]} 21. axb4
{[%clk 0:02:16]} 21... bxc5 {[%clk 0:01:45.8]} 22. bxc5 {[%clk 0:02:15]} 22...
Rxa1 {[%clk 0:01:44]} 23. Rxa1 {[%clk 0:02:14.3]} 23... Ng6 {[%clk 0:01:35.3]}
24. Bg3 {[%clk 0:02:13]} 24... h5 {[%clk 0:01:32.5]} 25. g5 {[%clk 0:02:06.8]}
25... Nd7 {[%clk 0:01:29.7]} 26. h4 {[%clk 0:02:03]} 26... Ndf8 {[%clk
0:01:26.7]} 27. Ra7 {[%clk 0:01:33.6]} 27... Qc8 {[%clk 0:01:23.1]} 28. Qe2
{[%clk 0:01:06.2]} 28... Bxc5 {[%clk 0:01:20.3]} 29. dxc5 {[%clk 0:00:53.1]}
29... Rxe2 {[%clk 0:01:17.5]} 30. Nxe2 {[%clk 0:00:53.4]} 30... Ne6 {[%clk
0:01:15.7]} 31. Bd6 {[%clk 0:00:50.1]} 31... Nxc5 {[%clk 0:01:11.6]} 32. Bxc5
{[%clk 0:00:47]} 32... Qg4+ {[%clk 0:01:10.9]} 33. Ng3 {[%clk 0:00:45.6]} 33...
Qxf3 {[%clk 0:01:09.9]} 0-1

[Event "*** SCC Grand Prix: Titled Tuesday Blitz"]
[Site "Chess.com"]
[Date "2020.07.21"]
[Round "10"]
[White "harlem4brew"]
[Black "PattyCastillo"]
[Result "1-0"]
[WhiteElo "2095"]
[BlackElo "1937"]
[TimeControl "180+1"]
[EndTime "11:58:26 PDT"]
[Termination "harlem4brew won by checkmate"]

1. d4 {[%clk 0:03:00.9]} 1... d5 {[%clk 0:02:52.8]} 2. Nf3 {[%clk 0:03:01]} 2...
Nf6 {[%clk 0:02:51.4]} 3. c4 {[%clk 0:03:00.1]} 3... c6 {[%clk 0:02:51]} 4. Nc3
{[%clk 0:02:59.8]} 4... e6 {[%clk 0:02:50]} 5. Bf4 {[%clk 0:02:59.2]} 5... Bd6
{[%clk 0:02:45.8]} 6. Bxd6 {[%clk 0:02:58.6]} 6... Qxd6 {[%clk 0:02:46.3]} 7. c5
{[%clk 0:02:59.5]} 7... Qc7 {[%clk 0:02:43.7]} 8. e3 {[%clk 0:03:00.4]} 8...
Nbd7 {[%clk 0:02:43.9]} 9. b4 {[%clk 0:03:00.5]} 9... e5 {[%clk 0:02:44.3]} 10.
b5 {[%clk 0:02:59.2]} 10... e4 {[%clk 0:02:41.8]} 11. Nd2 {[%clk 0:02:57.7]}
11... O-O {[%clk 0:02:40.9]} 12. a4 {[%clk 0:02:56.8]} 12... Re8 {[%clk
0:02:37.6]} 13. Qb3 {[%clk 0:02:56.2]} 13... Nf8 {[%clk 0:02:35.4]} 14. a5
{[%clk 0:02:53.7]} 14... Bd7 {[%clk 0:02:24.1]} 15. b6 {[%clk 0:02:51.6]} 15...
axb6 {[%clk 0:02:22.2]} 16. cxb6 {[%clk 0:02:51]} 16... Qd8 {[%clk 0:02:18.6]}
17. Qb4 {[%clk 0:02:49.3]} 17... Ng4 {[%clk 0:02:15]} 18. h3 {[%clk 0:02:36.6]}
18... Nh6 {[%clk 0:01:48.5]} 19. Nb3 {[%clk 0:02:34.8]} 19... Qg5 {[%clk
0:01:38.9]} 20. Nc5 {[%clk 0:02:31.9]} 20... Bc8 {[%clk 0:01:39.2]} 21. a6
{[%clk 0:02:29.3]} 21... bxa6 {[%clk 0:01:35.1]} 22. b7 {[%clk 0:02:27.4]} 22...
Bxb7 {[%clk 0:01:35.7]} 23. Qxb7 {[%clk 0:02:25.6]} 23... Ng6 {[%clk 0:01:28.4]}
24. Rxa6 {[%clk 0:02:19.8]} 24... Rab8 {[%clk 0:01:25.1]} 25. Qxc6 {[%clk
0:02:17.9]} 25... Nh4 {[%clk 0:01:24.7]} 26. Qxd5 {[%clk 0:02:04.5]} 26... Nxg2+
{[%clk 0:01:05]} 27. Kd1 {[%clk 0:01:52.1]} 27... Nxe3+ {[%clk 0:01:02.9]} 28.
fxe3 {[%clk 0:01:45.4]} 28... Qxe3 {[%clk 0:01:03.8]} 29. N5xe4 {[%clk
0:01:31.5]} 29... Qf3+ {[%clk 0:00:53.7]} 30. Kc2 {[%clk 0:01:30.6]} 30... Qxh1
{[%clk 0:00:54]} 31. Nf6+ {[%clk 0:01:29.1]} 31... gxf6 {[%clk 0:00:49.5]} 32.
Qxh1 {[%clk 0:01:29]} 32... Kf8 {[%clk 0:00:43.9]} 33. Rxf6 {[%clk 0:01:27.3]}
33... Ng8 {[%clk 0:00:43.9]} 34. Rxf7+ {[%clk 0:01:25]} 34... Kxf7 {[%clk
0:00:43.7]} 35. Bc4+ {[%clk 0:01:25.9]} 35... Ke7 {[%clk 0:00:42.8]} 36. Qe4+
{[%clk 0:01:25.2]} 36... Kd7 {[%clk 0:00:42.5]} 37. Qf5+ {[%clk 0:01:23.9]}
37... Kc7 {[%clk 0:00:40.5]} 38. Nd5+ {[%clk 0:01:22.9]} 38... Kb7 {[%clk
0:00:38.8]} 39. Qd7+ {[%clk 0:01:21.7]} 39... Ka8 {[%clk 0:00:31.7]} 40. Nc7+
{[%clk 0:01:20.6]} 40... Kb7 {[%clk 0:00:29.5]} 41. Nb5+ {[%clk 0:01:20.5]}
41... Kb6 {[%clk 0:00:29.5]} 42. Qc7+ {[%clk 0:01:20.7]} 42... Ka6 {[%clk
0:00:28.6]} 43. Qa7# {[%clk 0:01:21.2]} 1-0

[Event "*** SCC Grand Prix: Titled Tuesday Blitz"]
[Site "Chess.com"]
[Date "2020.07.21"]
[Round "10"]
[White "AwareIdea"]
[Black "michaelshahade"]
[Result "1-0"]
[WhiteElo "2463"]
[BlackElo "2040"]
[TimeControl "180+1"]
[EndTime "11:58:27 PDT"]
[Termination "AwareIdea won on time"]

1. d4 {[%clk 0:03:00.9]} 1... Nf6 {[%clk 0:02:59.2]} 2. Nc3 {[%clk 0:03:00.3]}
2... d5 {[%clk 0:02:54.5]} 3. Bf4 {[%clk 0:03:00.3]} 3... e6 {[%clk 0:02:44.2]}
4. Nf3 {[%clk 0:02:59.5]} 4... Bb4 {[%clk 0:02:41.3]} 5. a3 {[%clk 0:02:57.4]}
5... Bxc3+ {[%clk 0:02:35]} 6. bxc3 {[%clk 0:02:58.3]} 6... O-O {[%clk
0:02:33.7]} 7. e3 {[%clk 0:02:57.8]} 7... c5 {[%clk 0:02:32.3]} 8. Bd3 {[%clk
0:02:40.8]} 8... Qa5 {[%clk 0:02:24.7]} 9. O-O {[%clk 0:02:38.9]} 9... c4 {[%clk
0:02:14]} 10. Be2 {[%clk 0:02:35.5]} 10... Qxc3 {[%clk 0:02:08.6]} 11. Ne5
{[%clk 0:02:34.6]} 11... Nc6 {[%clk 0:01:56.1]} 12. Nxc6 {[%clk 0:02:31.1]}
12... bxc6 {[%clk 0:01:54.2]} 13. Bd6 {[%clk 0:02:31.3]} 13... Re8 {[%clk
0:01:36.8]} 14. Bb4 {[%clk 0:02:30.9]} 14... Qb2 {[%clk 0:01:34.9]} 15. Rb1
{[%clk 0:02:26.1]} 15... Qa2 {[%clk 0:01:32.2]} 16. Qc1 {[%clk 0:02:25.6]} 16...
a5 {[%clk 0:01:14.9]} 17. Bc5 {[%clk 0:02:06.1]} 17... c3 {[%clk 0:00:42.6]} 18.
Bd3 {[%clk 0:01:52.8]} 18... Ba6 {[%clk 0:00:32.1]} 19. Qd1 {[%clk 0:01:41.6]}
19... Bxd3 {[%clk 0:00:26]} 20. Qxd3 {[%clk 0:01:42.5]} 20... Qc4 {[%clk
0:00:18.3]} 21. Qxc4 {[%clk 0:01:41]} 21... dxc4 {[%clk 0:00:17.4]} 22. Rb6
{[%clk 0:01:40.8]} 22... Rec8 {[%clk 0:00:15]} 23. f3 {[%clk 0:01:39.9]} 23...
Nd7 {[%clk 0:00:13.4]} 24. Rb7 {[%clk 0:01:36.8]} 24... Nxc5 {[%clk 0:00:12.4]}
25. dxc5 {[%clk 0:01:37.7]} 25... Rab8 {[%clk 0:00:10.6]} 26. Rfb1 {[%clk
0:01:36.5]} 26... Rxb7 {[%clk 0:00:09.7]} 27. Rxb7 {[%clk 0:01:37.4]} 27... g5
{[%clk 0:00:08.1]} 28. Ra7 {[%clk 0:01:36.3]} 28... Kg7 {[%clk 0:00:06.8]} 29.
Rxa5 {[%clk 0:01:35.3]} 29... Kf6 {[%clk 0:00:07.1]} 30. Ra4 {[%clk 0:01:35.2]}
30... Ke5 {[%clk 0:00:05.4]} 31. Rxc4 {[%clk 0:01:35.2]} 31... Kd5 {[%clk
0:00:05.4]} 32. Rxc3 {[%clk 0:01:35.4]} 32... Ra8 {[%clk 0:00:02.7]} 33. Kf2
{[%clk 0:01:35.3]} 1-0